Cogmind - Beta 13 @@@ ROGUE MODE // 2024.04.08 @ 16:18:57 Player: gabr Result: Destroyed by Y-45 Defender with Heavy Assault Rifle Performance ------------- Evolutions (1) 500 Regions Visited (3) 600 Robots Destroyed (35) 175 Value Destroyed (881) 881 Prototype IDs (2) 40 Alien Tech Used (0) 0 Bonus (0) 0 TOTAL SCORE: 2196 Bonus ------- None Cogmind --------- Core Integrity 0/400 Matter 263/300 Energy 195/265 System Corruption 2% Temperature Cool (59) Movement Core (200) Ox3 Location -9/Storage Parts ------- > --- POWER (1) -------- Improved Ion Engine > --- PROPULSION (4) --- (None) > --- UTILITY (2) ------ (None) > --- WEAPON (2) ------- Beam Rifle > --- INVENTORY (5) ---- High-capacity Battery (250) Sensor Array Beam Rifle Particle Gun Peak State ------------ > --- POWER ------------ Light Nuclear Core > --- PROPULSION ------- Wheel Flight Unit Flight Unit Flight Unit > --- UTILITY ---------- Sensor Array Signal Interpreter > --- WEAPON ----------- Improved Medium Laser Advanced Beam Cannon > --- INVENTORY -------- Light Ion Engine Large Storage Unit High-capacity Battery Medium Laser Light Assault Rifle [Rating: 15] Favorites ----------- Power Light Ion Engine Engine Light Ion Engine Power Core Light Nuclear Core Propulsion Flight Unit Leg Aluminum Leg Wheel Wheel Flight Unit Flight Unit Utility Signal Interpreter Device Sensor Array Storage Large Storage Unit Processor Signal Interpreter Protection Light Armor Plating Weapon Assault Rifle Energy Gun Improved Medium Laser Energy Cannon Advanced Beam Cannon Ballistic Gun Assault Rifle Build | -11 -10 -9 -9 ------- Run | Yrd Mat Mat Sto Slots Evolved 2 | . . 2 . Power . | . . . . Propulsion 2 | . . 2 . Utility . | . . . . Weapon . | . . . . Parts Attached 42 | 7 1 15 19 Power 7 | 1 . 2 4 Engine 5 | 1 . 1 3 Core 2 | . . 1 1 Reactor . | . . . . Propulsion 10 | 2 . 4 4 Treads . | . . . . Leg 1 | . . . 1 Wheel 2 | 2 . . . Hover . | . . . . Flight 7 | . . 4 3 Utility 9 | 2 1 3 3 Device 3 | 1 . 1 1 Storage 2 | 1 1 . . Processor 2 | . . 2 . Hackware . | . . . . Protection 2 | . . . 2 Artifact . | . . . . Weapon 16 | 2 . 6 8 Energy Gun 8 | . . 4 4 Energy Cannon 2 | . . 2 . Ballistic Gun 6 | 2 . . 4 Ballistic Cannon . | . . . . Launcher . | . . . . Special Weapon . | . . . . Impact Weapon . | . . . . Slashing Weapon . | . . . . Piercing Weapon . | . . . . Special Melee Weapon . | . . . . Unidentified Prototypes 2 | . . 2 . Parts Lost 20 | . . 5 15 Power 3 | . . 1 2 Propulsion 8 | . . 2 6 Utility 3 | . . . 3 Weapon 6 | . . 2 4 Highest Loss Streak 14 | . . 2 14 To Critical Strikes . | . . . . Average Slot Usage (%) 81 | . 100 85 70 Engine 6 | . 14 8 1 Core 4 | . . 2 7 Wheel 10 | . 28 13 1 Flight 18 | . . 21 22 Device 9 | . 14 9 9 Storage 3 | . 14 4 . Processor 3 | . . 5 3 Protection 1 | . . . 3 Energy Gun 3 | . . 5 3 Ballistic Gun 16 | . 28 13 16 Naked Turns . | . . . . Heaviest Build 28 | 13 28 28 16 Greatest Support 22 | 20 20 20 22 Greatest Overweight (x) 6 | 3 1 6 3 Average Overweight (x) . | . . . . Largest Inventory Capacity 15 | 8 15 15 5 Average Capacity 8 | 7 14 8 5 Most Carried 6 | 2 6 5 5 Average Carried 4 | 1 4 4 4 Final Capacity 15 | 8 15 5 5 Final Carried 6 | 2 6 5 4 Class Distribution -------------------- 52% | Mutant 47% | Scavenger-Mutant Dominant Class ---------------- Mutant | -10/Materials Mutant | -9/Materials Scavenger-Mutant | -9/Storage Resources | -11 -10 -9 -9 ----------- Run | Yrd Mat Mat Sto Matter Collected 1063 | 242 34 356 431 Remotely 80 | . 34 46 . Salvage Created 1287 | 79 34 456 718 Parts 86 | 3 1 33 49 Haulers Intercepted 3 | . . 2 1 Recyclers Shooed 2 | . . 2 . Parts Field Recycled . | . . . . Retrieved Matter . | . . . . Parts Self-Destructed . | . . . . Prevented . | . . . . Kills | -11 -10 -9 -9 ------- Run | Yrd Mat Mat Sto Combat Hostiles Destroyed 26 | . 1 9 16 Guns 25 | . 1 9 15 Classes Destroyed 7 | 1 1 4 1 Worker 2 | . . 1 1 Hauler 3 | . . 2 1 Recycler 1 | 1 . . . Watcher 3 | . . 2 1 Swarmer 7 | . . 3 4 Grunt 12 | . 1 6 5 Sentry 7 | . . . 7 Best Kill Streak 7 | 1 1 3 7 Combat Bots Only 4 | . 1 2 4 Max Kills in Single Turn 2 | 1 1 1 2 Gunslinging 1 | . . . 1 Exploded . | . . . . Melee . | . . . . Uniques/NPCs Destroyed . | . . . . Combat | -11 -10 -9 -9 -------- Run | Yrd Mat Mat Sto Hostile Shots Fired 201 | . 8 73 120 Missed 55 | . 3 23 29 Damage Taken 1856 | . 52 535 1269 Core 415 | . 10 151 254 Absorbed by Shields . | . . . . Regen/Repaired (Parts) 14 | . . . 14 Core Remaining (%) 98 | 100 96 . . Volleys Fired 137 | 1 4 60 72 Largest 2 | 2 2 2 2 Hottest 112 | 40 40 112 76 Shots Fired 230 | 2 8 104 116 Gun 230 | 2 8 104 116 Cannon . | . . . . Launcher . | . . . . Special . | . . . . Kinetic 181 | 2 8 69 102 Thermal 49 | . . 35 14 Explosive . | . . . . Electromagnetic . | . . . . Robot Hit Streak 13 | 1 9 12 13 Robot Miss Streak 8 | 1 . 8 3 Penetration Max . | . . . . Secondary Targets 4 | . . 1 3 Max Gunslinging Chain 1 | . . 1 1 Shots Hit Robots 145 | 1 8 59 77 Core Hits 55 | 1 2 21 31 Critical Kills . | . . . . Critical Parts Destroyed . | . . . . Critical Strikes 1 | . . . 1 Burn 1 | . . . 1 Melee Attacks . | . . . . Impact . | . . . . Slashing . | . . . . Piercing . | . . . . Sneak Attacks . | . . . . Combat Hostiles . | . . . . Follow-up Attacks . | . . . . Damage Inflicted 1922 | 29 100 746 1047 Guns 1922 | 29 100 746 1047 Cannons . | . . . . Explosions . | . . . . Melee . | . . . . Ramming . | . . . . Kinetic 1443 | 29 100 448 866 Thermal 479 | . . 298 181 Explosive . | . . . . Electromagnetic . | . . . . Impact . | . . . . Slashing . | . . . . Piercing . | . . . . Highest Corruption 2 | . . 2 2 Average Corruption 2 | . . 2 2 Corruption Purged . | . . . . Corruption Blocked . | . . . . Effects 8 | . . . 8 Message Errors 1 | . . . 1 Matter Fused 4 | . . . 4 Data Loss (minor) 1 | . . . 1 Weapon Failures 2 | . . . 2 Overload Shots . | . . . . Overflow Damage . | . . . . Projectiles . | . . . . Explosions . | . . . . Melee . | . . . . Knockbacks . | . . . . Impact . | . . . . Kinetic . | . . . . Secondary . | . . . . Self-Inflicted Damage . | . . . . Shots . | . . . . Rammed . | . . . . Targets Rammed . | . . . . Kicked . | . . . . Crushed . | . . . . Highest Temperature 231 | . . 231 98 Average Temperature 56 | . . 105 27 Received Heat Transfer 753 | . 30 234 489 Siege Activations . | . . . . Robots Corrupted . | . . . . Combat Hostiles . | . . . . Parts Fried . | . . . . Impact Corruptions . | . . . . Robots Melted 1 | . . . 1 Combat Hostiles 1 | . . . 1 Parts Melted 3 | . . 1 2 Heat Transferred 1252 | . . 660 592 Parts Sabotaged . | . . . . Parts Stolen . | . . . . Parts Stripped . | . . . . Power Chain Reactions . | . . . . Alert | -11 -10 -9 -9 ------- Run | Yrd Mat Mat Sto Peak Influence 397 | 5 48 366 397 Initial 69 | . 3 20 69 Average 149 | . 13 166 204 Maximum Alert Level 1 | . . 1 1 Low Security (%) 62 | 100 100 57 48 Level 1 37 | . . 42 51 Level 2 . | . . . . Level 3 . | . . . . Level 4 . | . . . . Level 5 . | . . . . High Security . | . . . . Max Security . | . . . . Squads Dispatched 5 | . 1 1 3 Investigation 1 | . 1 . . Extermination . | . . . . Reinforcement 2 | . . 1 1 Assault . | . . . . Garrison 2 | . . . 2 Intercept . | . . . . Searches Triggered . | . . . . Construction Impeded 1 | . . 1 . Haulers Reinforced . | . . . . Active Scanning Responses . | . . . . Cargo Convoy Interrupts . | . . . . Stealth | -11 -10 -9 -9 --------- Run | Yrd Mat Mat Sto Distress Signals 5 | . . 3 2 Communications Jammed . | . . . . Distress Signals . | . . . . Times Spotted 47 | . 3 23 21 Peak Tracking Total 7 | . 2 7 7 Tactical Retreats 4 | . 1 3 . Traps | -11 -10 -9 -9 ------- Run | Yrd Mat Mat Sto Traps Triggered 1 | . 1 . . Indirectly . | . . . . Trap Hack Attempts . | . . . . Triggered . | . . . . Disarmed . | . . . . Reprogrammed . | . . . . Reused . | . . . . Traps Extracted . | . . . . Installed . | . . . . Triggered . | . . . . Machines | -11 -10 -9 -9 ---------- Run | Yrd Mat Mat Sto Machines Disabled . | . . . . Max in Single Turn . | . . . . Machines Repaired . | . . . . Machines Dismantled . | . . . . Machines Sabotaged . | . . . . Overloaded Fab Kills . | . . . . Hacking | -11 -10 -9 -9 --------- Run | Yrd Mat Mat Sto Machines Accessed 3 | . . 1 2 Terminals 2 | . . 1 1 Fabricators . | . . . . Repair Stations 1 | . . . 1 Recycling Units . | . . . . Scanalyzers . | . . . . Garrison Access . | . . . . Total Hacks 7 | . . 2 5 Successful 3 | . . . 3 Failed 4 | . . 2 2 Catastrophic 2 | . . 1 1 Database Lockouts . | . . . . Manual 2 | . . 2 . Terminals 4 | . . 2 2 Fabricators . | . . . . Repair Stations 3 | . . . 3 Recycling Units . | . . . . Scanalyzers . | . . . . Garrison Access . | . . . . Terminal Hacks 1 | . . . 1 Unreport Threat 1 | . . . 1 Fabricator Hacks . | . . . . Repair Station Hacks 2 | . . . 2 Scan Component 1 | . . . 1 Repair 1 | . . . 1 Recycling Unit Hacks . | . . . . Scanalyzer . | . . . . Garrison Access Hacks . | . . . . Unauthorized Hacks . | . . . . Terminals . | . . . . Fabricators . | . . . . Repair Stations . | . . . . Recycling Units . | . . . . Scanalyzers . | . . . . Garrison Access . | . . . . Data Cores Recovered . | . . . . Used . | . . . . Hacking Detections 2 | . . 1 1 Full Trace Events . | . . . . Feedback Events . | . . . . Feedback Blocked . | . . . . Robot Schematics Acquired . | . . . . Robots Built . | . . . . Authchips . | . . . . Time . | . . . . Total Robot Build Rating . | . . . . Part Schematics Acquired . | . . . . Parts Built . | . . . . Authchips . | . . . . Time . | . . . . Total Part Build Rating . | . . . . Parts Repaired 1 | . . . 1 Time 26 | . . . 26 Parts Recycled . | . . . . Recycled Matter . | . . . . Retrieved Matter . | . . . . Retrieved Components . | . . . . Parts Scanalyzed . | . . . . Part Schematics Acquired . | . . . . Parts Damaged . | . . . . Bothacking | -11 -10 -9 -9 ------------ Run | Yrd Mat Mat Sto Used RIF Installer . | . . . . Robots Hacked . | . . . . Non-combat . | . . . . Combat . | . . . . Robot Hacks Applied . | . . . . Relay Couplers Released . | . . . . Fabnet Peak Effective % . | . . . . Robots Rewired . | . . . . Allies Hacked . | . . . . Hacks Repelled . | . . . . Allies | -11 -10 -9 -9 -------- Run | Yrd Mat Mat Sto Total Allies . | . . . . Largest Group . | . . . . Highest-Rated Group . | . . . . Highest-Rated Ally . | . . . . Total Orders . | . . . . Ally Attacks . | . . . . Total Damage . | . . . . Kills . | . . . . Allies Corrupted . | . . . . Allies Melted . | . . . . Intel | -11 -10 -9 -9 ------- Run | Yrd Mat Mat Sto Robot Analysis Total . | . . . . Derelict Logs Recovered . | . . . . Drone Launches . | . . . . Drone Recoveries . | . . . . Exploration | -11 -10 -9 -9 ------------- Run | Yrd Mat Mat Sto Turns Passed 969 | 68 121 417 363 Spaces Moved 652 | 52 101 258 241 Core 27 | 20 . . 7 Treads . | . . . . Legs 6 | . . . 6 Wheels 169 | 32 101 36 . Hover . | . . . . Flight 450 | . . 222 228 Fastest Speed 31 | 50 80 39 31 Average Speed 58 | 99 94 52 41 Slowest Speed 525 | 200 95 525 200 Overloaded Moves . | . . . . Propulsion Burnouts . | . . . . Robots Hopped 16 | . . 10 6 Cave-ins Triggered . | . . . . Exploration Rate (%) 21 | 3 22 21 38 Regions Visited 3 Branch Regions 1 Pre-discovered Areas . | . . . . Known Exits Taken 1 | . . 1 . Unknown Exits Taken 2 | 1 1 . . Scrap Searched . | . . . . Spaces Dug . | . . . . Terrain Destroyed . | . . . . Melee . | . . . . Projectile . | . . . . AOE . | . . . . Terrain Rammed . | . . . . Walls Destroyed . | . . . . Machines Disabled . | . . . . Actions | -11 -10 -9 -9 --------- Run | Yrd Mat Mat Sto Total 990 | 62 118 420 390 Wait 157 | 1 10 89 57 Move 619 | 51 100 237 231 Hop 14 | . . 10 4 Pick Up 6 | 2 3 1 . Fast Attach 31 | 7 . 12 12 Attach 4 | . . 1 3 Detach 1 | . . . 1 Swap 7 | . 1 2 4 Drop 14 | . . 8 6 Fire 137 | 1 4 60 72 Melee . | . . . . Ram . | . . . . Kick . | . . . . Crush . | . . . . Escape Stasis . | . . . . Rewire . | . . . . Trap . | . . . . Miscellaneous . | . . . . Route ------- -11/Scrapyard -10/Materials -9/Materials -9/Storage History --------- Turn | Location | Event 5 | -11/Scrapyard | Discovered new exit (range 16) 69 | -11/Scrapyard | Entered Materials 176 | -10/Materials | Discovered new exit (range 15) 190 | -10/Materials | Entered another Materials area 190 | -9/Materials | Evolved 2 slots: Propulsion x2 306 | -9/Materials | Build established: Mutant 604 | -9/Materials | Discovered new exit (range 7) 606 | -9/Materials | Identified exit to Storage 607 | -9/Materials | Entered Storage 653 | -9/Storage | Repaired Flight Unit 714 | -9/Storage | Build established: Scavenger-Mutant 824 | -9/Storage | Garrison activated, responded to threat 861 | -9/Storage | Core integrity fell below 50% 934 | -9/Storage | Core integrity fell below 20% 970 | -9/Storage | Destroyed by Y-45 Defender with Heavy Assault Rifle Last Messages --------------- 00913_ G-47 Trooper destroyed. 00915_ Acquired 89 matter. 00916_ R-06 Scavenger collects Lgt. Nuclear Core. 00916_ Acquired Aluminum Leg. 00917_ Acquired 8 matter. 00919_ R-06 Scavenger collects Imp. Heat Sink. 00926_ System corrupted: Matter fused (-6). 00927_ Weight Redist. System destroyed. 00938_ Y-45 Defender destroyed. 00940_ Acquired Particle Gun. 00941_ Acquired 24 matter. 00949_ Aluminum Leg destroyed. 00949_ Critical hit (Burn: +37). 00950_ Acquired Lgt. Armor Plating. 00952_ Lgt. Armor Plating destroyed. 00953_ Acquired Imp. Ion Engine. 00956_ System corrupted: Matter fused (-10). 00965_ K-01 Serf collects debris. 00967_ Lgt. Assault Rifle destroyed. 00970_ K-01 Serf collects debris. Map ----- +----------------------------------------------------+ | | | | | | | | | | | | | | | | | ????????????????????????????????????????????????? | | ????????????????????????????????????????????????? | | ????????????????????????????????????????????????? | | ????????????????????????????????????????????????? | | ????????????????????????????????????????????????? | | ????????????????????????????????????????????????? | | ????????????????????????????????????????????????? | | ????????????????????????????????????????????????? | | ????????????????????????????????????????????????? | | ????????????????????????????????????????????????? | | ????????????????????????????????????????????????? | | ????????????????????????????????????????????????? | | ??????????#+###+#####+#######################???? | | ??????????# + #???? | | ??????????+ == * # ????? | | ??????????# Y *% # ?????? | | ????????????????#########Y##### %*#=""" ""??????? | | ?????????????????????# !@%k # =%+!""" ""??????? | | ?????????????????????# # !# """ ""??????? | | ?????????????????????# """"" # # #???? | | ?????????????????????# """"" # # #???? | | ?????????????????????# """"" # # #########???? | | ?????????????????????########## ###???????????? | | ?????????????????????# # #?????????????? | | ?????????????????????# # #?????????????? | | ?????????????????????# """" # #?????????????? | | ?????????????????????# ???"" # #?????????????? | | ?????????????????????# ????"" +! #?????????????? | | ?????????????????????# ""???" #[! #?????????????? | | ?????????????????????# ""??" #%*=#?????????????? | | ?????????????????????# """" #=! #?????????????? | | ?????????????????????# #[=!#?????????????? | | ?????????????????????##+#######* [#?????????????? | | ???????????????????#+## #######!###?????????????? | | ???????????????????+ *%%[#???????????????? | | ???????????????????# =!%=#???????????????? | | ???????????????????# |= ########????????? | | ???????????????????# =|! ?? | | ???????????????????+ %! ?? | | ???????????????????# ?? | | ???????????????????###%####### ###########+#??? | | ????????????????????##"####### #??????????????? | +----------------------------------------------------+ Best States ------------- Heat Dissipation 28 Energy Generation 14 Energy Capacity 265 Matter Stores 300 Matter Capacity 300 Sight Range 16 Robot Scan Range 14 Terrain Scan Density 10 Additional Mass Support 6 Armor Coverage 150 Evasion (%) 63 Item Schematics ----------------- None Robot Schematics ------------------ None Fabricated ------------ Nothing Alien Tech Used ----------------- None Achievements -------------- None Challenges ------------ None Game ------ Seed MicroGuidanceInsulator Manual? 0 Play Time 00:10:48 Cumulative 68.9 hours Start 2024.04.08 @ 16:09:26 End 2024.04.08 @ 16:18:57 Sessions 1 Manual Loads 0 Difficulty Rogue Special Mode None Game No. 153 Rogue 153 Adventurer 0 Explorer 0 Win Type - Total 0 Types 0/0/0/0/0/0/0/0/0 Lore% 27 Gallery% 41 Achievement% 31 Wizard Run 0 Options --------- Layout 0 ASCII 0 Keyboard 1 Movement Numpad Keybinds 0 Fullscreen 1 Font 24/Terminus Map View 76x50 Zoom Use 0% Tactical HUD 1 Map Filters NONE Filters NONE Steam 1 RUN: c5c6e992-e154-4490-86e3-03431edcbbf5